[Event "Reykjavik Open 2025"]
[Site "Reykjavik"]
[Date "2025.04.10"]
[Round "2.17"]
[White "Le Goff, Ronan"]
[Black "Draskovic, Luka"]
[Result "0-1"]
[Annotator "TA"]
[ECO "D11"]
[WhiteElo "2282"]
[BlackElo "2488"]
[PlyCount "82"]
[EventDate "2025.04.09"]
[EventType "swiss"]
[EventCountry "ISL"]
[SourceTitle "playchess.com"]
[Source "ChessBase"]
[SourceQuality "1"]
[TimeControl "40/5400+30:1800+30"]

{[%evp 11,82,0,0,0,0,7,26,22,32,22,23,-8,-1,0,0,-34,0,0,0,0,22,-49,-40,-57,-50,-57,-52,-48,-20,-35,-36,-32,-7,-13,-4,-14,0,-129,-100,-126,-110,-151,-177,-158,-161,-164,-152,-166,-166,-224,-242,-391,-381,-458,-457,-437,-425,-399,-320,-493,-489,-441,-334,-471,-443,-477,-491,-512,-520,-515,-523,-508,-505]} 1. Nf3 {[%emt 0:00:05]} d5 {[%emt 0:00:53]} 2. d4 {[%emt 0:00:38]} Nf6 {[%emt 0:00:24]} 3. g3 {[%emt 0:00:12]} Bf5 {[%emt 0:00:36]} 4. c4 {[%emt 0:00:39]} e6 {[%emt 0:00:35]} 5. Nc3 {[%emt 0:00:29]} h6 {[%emt 0:00:31]} 6. Bg2 {[%emt 0:00:20]} c6 {[%emt 0:02:28]} 7. Qb3 {[%emt 0:00:15] D11: Slav Defence: 3 Nf3 sidelines and 3...Nf6 4 e3 Bg4.} Qb6 {[%emt 0:15:00]} 8. c5 {[%emt 0:00:54]} Qc7 {[%emt 0:08:00]} 9. Bf4 {[%emt 0:02:18] White has an edge.} Qc8 {[%emt 0:00:13][%cal Ob7b6]} 10. O-O {[%emt 0:00:46]} Nbd7 {[%emt 0:01:21]} 11. h3 {[%emt 0:04:19]} Be7 {[%emt 0:06:21]} 12. g4 {[%emt 0:01:11]} Bh7 {[%emt 0:01:08]} 13. Qd1 {[%emt 0:13:40]} h5 $146 {[%emt 0:13:32]} (13... O-O 14. b4 Ne4 15. Nxe4 Bxe4 16. a4 f5 17. gxf5 Rxf5 18. Bg3 Qe8 19. Ra3 Qh5 {0-1 Merino Garcia,R (2407)-Basso,P (2508) Titled Tuesday intern op 18th Jul Early blitz 2023 (1)}) 14. g5 {[%emt 0:04:12]} Ne4 {[%emt 0:00:07]} 15. Rc1 {[%emt 0:02:24][%cal Ba1c1,Bc1c3,Bc3b3][%mdl 32]} O-O {[%emt 0:08:51][%cal Oe6e5]} 16. Nd2 {[%emt 0:09:41]} (16. e3 $11) 16... e5 $15 {[%emt 0:11:03]} (16... Bxg5 $6 17. Bxg5 Nxg5 18. f4 $14) 17. dxe5 {[%emt 0:08:13]} Nxc3 {[%emt 0:05:15]} (17... Nexc5 $6 18. b4 $14) (17... Bxg5 $6 18. Bxg5 Nxg5 19. f4 $14) 18. Rxc3 {[%emt 0:00:35]} Nxc5 {[%emt 0:00:07]} 19. e4 {[%emt 0:12:19] Against Qf5} Nxe4 {[%emt 0:06:46]} (19... Ne6 $5 20. Bg3 Bb4 (20... Bxg5 21. f4 $16) 21. exd5 Bxc3 (21... Nxg5 $2 22. Rc4 $18) 22. dxe6 Bxd2 (22... Bxb2 23. exf7+ Rxf7 24. Nc4 $16) 23. exf7+ Rxf7 24. Qxd2 Qe6 $15) 20. Nxe4 {[%emt 0:01:20]} dxe4 {[%emt 0:00:55]} 21. Qxh5 {[%emt 0:00:34]} Qe6 {[%emt 0:02:08][%cal Oa8d8]} 22. Rb3 {[%emt 0:03:15]} b5 {[%emt 0:03:10]} 23. Re1 {[%emt 0:00:35]} Rad8 {[%emt 0:01:54]} 24. Bg3 {[%emt 0:08:19]} (24. Bxe4 $11 {remains equal.} Bg6 25. Qg4) 24... Rd4 $17 {[%emt 0:01:28] White is now going downhill.} 25. Rbe3 {[%emt 0:02:15][%cal Rg2e4]} Bg6 {[%emt 0:00:45]} 26. Qg4 {[%emt 0:03:33]} Qxg4 {[%emt 0:00:51]} (26... Qxa2 27. h4 (27. Bxe4 Bc5 $15) 27... Qe6 (27... Qxb2 $2 28. h5 $18) 28. Bh3 $15) 27. hxg4 {[%emt 0:00:08][%cal Rg2e4]} Bxg5 {[%emt 0:00:49]} 28. R3e2 {[%emt 0:00:33][%cal Rg2e4]} Bd2 {[%emt 0:02:02]} 29. Rd1 {[%emt 0:01:31]} Rfd8 $36 {[%emt 0:00:06][%mdl 2048] Keeping White busy.} 30. Kh2 {[%emt 0:02:25]} (30. Ra1 $142) 30... c5 $19 {[%emt 0:00:51]} 31. f3 {[%emt 0:02:29]} (31. Kh3 $142) 31... e3 {[%emt 0:01:09]} 32. Bh4 {[%emt 0:00:46]} Bd3 {[%emt 0:03:30]} (32... Bc2 33. Rde1 R8d5 34. Rxe3 $19) 33. Rexd2 {[%emt 0:01:41]} exd2 {[%emt 0:00:09]} (33... f6 34. Rxd3 Rxd3 35. Re1 $11 (35. Rxd3 $2 Rxd3 36. exf6 gxf6 $19)) 34. Rxd2 {[%emt 0:00:10]} ({Don't go for} 34. Bxd8 $2 Be2 (34... Rxd8 35. Rxd2 Rd4 36. Kg1 $11)) 34... Bg6 {[%emt 0:00:35]} 35. Re2 {[%emt 0:00:19]} (35. Rf2 {keeps fighting.} R8d5 36. Bg3) 35... Rd2 {[%emt 0:00:18]} 36. Re1 {[%emt 0:00:24]} Rd1 {[%emt 0:02:01]} 37. Rxd1 {[%emt 0:00:25]} (37. f4 $142) 37... Rxd1 {[%emt 0:00:06] Black is clearly winning.} 38. f4 {[%emt 0:00:10]} Bb1 {[%emt 0:00:43]} 39. a3 {[%emt 0:00:36]} Rd2 {[%emt 0:00:09][%cal Ob1e4] [#] And now ...Be4! would win.} 40. Kg3 {[%emt 0:00:24]} Rxb2 {[%emt 0:00:10]} 41. f5 {[%emt 0:30:40]} Ba2 {[%emt 0:30:31] Weighted Error Value: White=0.34/Black=0.13 (very precise)   Mistake:       	White=6     	---        Inaccurate:     	White=3     	Black=2      OK:         	White=10    	Black=20     Best:        	White=2     	Black=2} 0-1

[Event "Reykjavik Open 2025"]
[Site "Reykjavik"]
[Date "2025.04.10"]
[Round "2.18"]
[White "Kilic, Eray"]
[Black "Priansh Das"]
[Result "1-0"]
[Annotator "TA"]
[ECO "C02"]
[WhiteElo "2473"]
[BlackElo "2262"]
[PlyCount "65"]
[EventDate "2025.04.09"]
[EventType "swiss"]
[EventCountry "ISL"]
[SourceTitle "playchess.com"]
[Source "ChessBase"]
[SourceQuality "1"]
[TimeControl "40/5400+30:1800+30"]

{[%evp 19,65,0,0,-22,0,-2,2,0,11,2,41,36,50,37,27,0,41,27,154,156,231,10,83,54,203,183,187,183,168,127,327,353,316,217,228,192,314,332,316,287,362,336,536,526,1006,1004,29997,29998]} 1. e4 {[%emt 0:00:02]} e6 {[%emt 0:00:09]} 2. d4 {[%emt 0:00:09]} d5 {[%emt 0:01:45]} 3. e5 {[%emt 0:00:06]} c5 {[%emt 0:00:03]} 4. c3 {[%emt 0:00:04][%cal Bc2c3,Bc3d4][%mdl 32]} Nc6 {[%emt 0:00:04]} 5. Nf3 {[%emt 0:00:04]} Bd7 {[%emt 0:00:26]} 6. Be2 {[%emt 0:00:05]} Nge7 {[%emt 0:00:22]} 7. O-O {[%emt 0:01:54]} cxd4 {[%emt 0:01:07]} 8. cxd4 {[%emt 0:00:04]} Nf5 {[%emt 0:00:18]} 9. Nc3 {[%emt 0:00:09]} Rc8 {[%emt 0:01:58]} 10. a3 {[%emt 0:06:35]} a6 {[%emt 0:00:57]} 11. g4 {[%emt 0:02:22] C02: French: Advance Variation.} Nfe7 {[%emt 0:10:59][%cal Bf5e7,Be7g6,Bg6h4][%mdl 32]} 12. Be3 $146 {[%emt 0:00:25]} (12. Bg5 h6 13. Be3 Na5 14. Nd2 h5 15. gxh5 Nf5 16. Bg4 g6 17. hxg6 fxg6 18. h3 Qb6 {½-½ Jones,G (2665)-Pert,N (2546) BCF-chT 2122 (4NCL) 2021 (11.31)}) 12... h5 {[%emt 0:05:41]} 13. h3 {[%emt 0:01:02] The position is equal.} hxg4 {[%emt 0:05:11]} 14. hxg4 {[%emt 0:00:05]} f5 {[%emt 0:00:47]} 15. Bd3 $40 {[%emt 0:04:59][%mdl 128] White has some attack.} Ng6 {[%emt 0:08:54]} 16. gxf5 {[%emt 0:04:58]} exf5 {[%emt 0:02:34]} 17. Re1 {[%emt 0:11:04][%cal Oe5e6]} Be6 {[%emt 0:02:43]} 18. Ng5 {[%emt 0:00:17]} Qd7 {[%emt 0:14:47] [#]} (18... Qe7 $1 $11 {keeps the balance.}) 19. Na4 $1 $16 {[%emt 0:06:04]} Rd8 {[%emt 0:01:37]} (19... Rh4 $16 20. Nb6 Qe7) 20. Qf3 $2 {[%emt 0:03:03]} (20. Nb6 $18 Qe7 21. f4 Nxd4 22. Bxa6 (22. Bxd4 Nxf4 23. Nf3 g5 $15) 22... bxa6 23. Qxd4 (23. Bxd4 $2 Nxf4 24. Nf3 Qf7 $19)) 20... Nh4 $11 {[%emt 0:07:49]} 21. Qg3 {[%emt 0:00:13] White is more active.} Na5 {[%emt 0:06:36]} ({Black should try} 21... f4 $1 $14 22. Qxf4 Be7 23. Nxe6 Qxe6) 22. Rac1 {[%emt 0:07:44]} (22. Nb6 $6 Qc6 $14) 22... Nc4 {[%emt 0:03:35] Wards off Nb6} 23. b3 {[%emt 0:01:01] Repels b5} Nxe3 {[%emt 0:00:16]} 24. fxe3 {[%emt 0:00:11][%cal Ob3b4] And now b4! would win.} (24. Rxe3 $6 Bxa3 25. Nc5 Bxc5 26. Rxc5 Ng6 $14) 24... Qe7 {[%emt 0:11:04] [#]} (24... Bxa3 $16 25. Nc5 Bxc5 26. Rxc5 Qe7) 25. Kf2 $18 {[%emt 0:01:59]} Rh5 {[%emt 0:02:52]} 26. Nxe6 {[%emt 0:02:44]} Qxe6 {[%emt 0:00:12]} 27. Rh1 {[%emt 0:00:05] Inhibits g5.} Be7 {[%emt 0:02:45]} (27... Qe7 {keeps fighting.} 28. Nc5 g5) 28. Rc7 {[%emt 0:04:03]} g5 {[%emt 0:01:42]} 29. Be2 {[%emt 0:02:24]} (29. Rxb7 g4 30. Rb6 Qf7 $18) 29... Rh8 {[%emt 0:01:22]} 30. Nc5 {[%emt 0:01:19]} ({Don't do} 30. Rxb7 Qh6 31. Rb6 Qh7 $18) 30... Bxc5 {[%emt 0:00:38]} (30... Qg6 $142 31. Nxb7 Rb8) 31. Qxg5 {[%emt 0:00:38]} ({Less strong is} 31. Rxc5 Qg6 $16) (31. dxc5 Qg6 32. b4 (32. Rxb7 Qc6 $18) 32... d4 33. exd4 (33. Rxb7 Qc6 $16) 33... b6 $18) 31... Be7 {[%emt 0:00:14]} 32. Qg7 {[%emt 0:00:06]} Rg8 {[%emt 0:03:28]} 33. Bh5+ {[%emt 0:02:24] Weighted Error Value: White=0.28 (precise) /Black=1.01  Loses game:     	---       	Black=1      Missed win:     	White=1     	---        Mistake:       	---       	Black=5      Inaccurate:     	White=3     	Black=4      OK:         	White=4     	Black=6      Best:        	White=2     	Black=1      Strong:       	White=1     	---} 1-0

[Event "Reykjavik Open 2025"]
[Site "Reykjavik"]
[Date "2025.04.10"]
[Round "2.19"]
[White "Sriansh Das"]
[Black "Royal, Shreyas"]
[Result "1/2-1/2"]
[Annotator "RC"]
[ECO "B90"]
[WhiteElo "2278"]
[BlackElo "2465"]
[PlyCount "51"]
[EventDate "2025.04.09"]
[EventType "swiss"]
[EventCountry "ISL"]
[SourceTitle "playchess.com"]
[Source "ChessBase"]
[SourceQuality "1"]
[TimeControl "40/5400+30:1800+30"]

1. e4 {[%emt 0:00:18]} c5 {[%emt 0:00:06]} 2. Nf3 {[%emt 0:00:04]} d6 {[%emt 0:00:05]} 3. d4 {[%emt 0:00:04]} cxd4 {[%emt 0:00:05]} 4. Nxd4 {[%emt 0:00:04]} Nf6 {[%emt 0:00:05]} 5. Nc3 {[%emt 0:00:04]} a6 {[%emt 0:00:03]} 6. Be3 {[%emt 0:00:06]} Ng4 {[%emt 0:00:15]} 7. Bc1 {[%emt 0:02:23]} Nf6 {[%emt 0:01:00]} 8. Be3 {[%emt 0:00:07]} Ng4 {[%emt 0:00:59]} 9. Bc1 {[%emt 0:00:56]} Nc6 {[%emt 0:00:06]} 10. Be2 {[%emt 0:04:40]} Qb6 {[%emt 0:01:31]} 11. Bxg4 {[%emt 0:07:03]} Qxd4 {[%emt 0:00:07]} 12. Qxd4 {[%emt 0:02:48]} Nxd4 {[%emt 0:00:07]} 13. Bd1 {[%emt 0:00:09]} e6 {[%emt 0:04:29]} 14. Be3 {[%emt 0:00:22]} Nc6 {[%emt 0:00:02]} 15. Na4 {[%emt 0:02:36]} Be7 {[%emt 0:00:46]} 16. Nb6 {[%emt 0:00:09]} Rb8 {[%emt 0:00:01]} 17. c3 {[%emt 0:01:22]} O-O {[%emt 0:00:40]} 18. O-O {[%emt 0:00:35]} Rd8 {[%emt 0:00:19]} 19. Be2 {[%emt 0:02:26]} Bd7 {[%emt 0:03:07]} 20. Rfd1 {[%emt 0:01:36]} Be8 {[%emt 0:01:35]} 21. Rd2 {[%emt 0:01:11]} Ne5 {[%emt 0:03:48]} 22. Rad1 {[%emt 0:07:05]} Bc6 {[%emt 0:00:37]} 23. f3 {[%emt 0:01:24]} g5 {[%emt 0:00:38]} 24. c4 {[%emt 0:09:28]} a5 {[%emt 0:11:55]} 25. b3 {[%emt 0:02:44]} g4 {[%emt 0:08:17]} 26. f4 {[%emt 0:11:14]} 1/2-1/2

[Event "Reykjavik Open 2025"]
[Site "Reykjavik"]
[Date "2025.04.10"]
[Round "2.20"]
[White "Hjartarson, Johann"]
[Black "Unzicker, Ferdinand"]
[Result "1-0"]
[Annotator "RC"]
[ECO "B67"]
[WhiteElo "2461"]
[BlackElo "2241"]
[PlyCount "87"]
[EventDate "2025.04.09"]
[EventType "swiss"]
[EventCountry "ISL"]
[SourceTitle "playchess.com"]
[Source "ChessBase"]
[SourceQuality "1"]
[TimeControl "40/5400+30:1800+30"]

1. e4 {[%emt 0:00:06]} c5 {[%emt 0:00:41]} 2. Nf3 {[%emt 0:00:07]} d6 {[%emt 0:00:10]} 3. d4 {[%emt 0:00:15]} cxd4 {[%emt 0:00:05]} 4. Nxd4 {[%emt 0:00:05]} Nf6 {[%emt 0:00:04]} 5. Nc3 {[%emt 0:00:09]} Nc6 {[%emt 0:00:03]} 6. Bg5 {[%emt 0:00:32]} e6 {[%emt 0:00:12]} 7. Qd2 {[%emt 0:00:37]} a6 {[%emt 0:00:17]} 8. O-O-O {[%emt 0:00:02]} Bd7 {[%emt 0:00:16]} 9. f3 {[%emt 0:00:28]} Be7 {[%emt 0:03:41]} 10. h4 {[%emt 0:00:53]} h6 {[%emt 0:00:59]} 11. Be3 {[%emt 0:01:32]} h5 {[%emt 0:00:42]} 12. Bg5 {[%emt 0:02:40]} Qc7 {[%emt 0:13:29]} 13. Kb1 {[%emt 0:04:11]} b5 {[%emt 0:14:01]} 14. Nxc6 {[%emt 0:01:14]} Bxc6 {[%emt 0:01:39]} 15. Ne2 {[%emt 0:01:04]} Qb7 {[%emt 0:02:48]} 16. Nd4 {[%emt 0:04:10]} Bd7 {[%emt 0:04:28]} 17. Bd3 {[%emt 0:00:46]} Rc8 {[%emt 0:04:50]} 18. Rhe1 {[%emt 0:10:42]} g6 {[%emt 0:17:51]} 19. e5 {[%emt 0:19:25]} dxe5 {[%emt 0:01:11]} 20. Rxe5 {[%emt 0:00:09]} Qb6 {[%emt 0:11:38]} 21. Qf4 {[%emt 0:03:52]} Ng8 {[%emt 0:04:52]} 22. Rde1 {[%emt 0:09:29]} Rc5 {[%emt 0:04:55]} 23. Bxe7 {[%emt 0:18:35]} Nxe7 {[%emt 0:00:44]} 24. Qf6 {[%emt 0:02:02]} Rg8 {[%emt 0:02:00]} 25. Rxc5 {[%emt 0:02:06]} Qxc5 {[%emt 0:00:07]} 26. g4 {[%emt 0:01:50]} hxg4 {[%emt 0:05:53]} 27. fxg4 {[%emt 0:00:25]} Nd5 {[%emt 0:00:37]} 28. Qe5 {[%emt 0:00:14]} Ke7 {[%emt 0:02:50]} 29. h5 {[%emt 0:01:13]} gxh5 {[%emt 0:02:07]} 30. gxh5 {[%emt 0:00:37]} Rg1 {[%emt 0:01:12]} 31. Nf3 {[%emt 0:04:21]} Rxe1+ {[%emt 0:00:31]} 32. Qxe1 {[%emt 0:00:40]} Nf6 {[%emt 0:01:00]} 33. Ne5 {[%emt 0:05:38]} Nxh5 {[%emt 0:00:30]} 34. Qh4+ {[%emt 0:02:06]} f6 {[%emt 0:00:36]} 35. Ng6+ {[%emt 0:00:34]} Kd6 {[%emt 0:00:27]} 36. a3 {[%emt 0:01:20]} Qg1+ {[%emt 0:00:11]} 37. Ka2 {[%emt 0:00:04]} Qg5 {[%emt 0:00:07]} 38. Qh2+ {[%emt 0:00:57]} Ng3 {[%emt 0:00:08]} 39. Qf2 {[%emt 0:01:29]} Qd5+ {[%emt 0:00:22]} 40. b3 {[%emt 0:00:09]} Nf5 {[%emt 0:00:36]} 41. Qb6+ {[%emt 0:05:00]} Bc6 {[%emt 0:07:09]} 42. Qd8+ {[%emt 0:03:33]} Kc5 {[%emt 0:00:11]} 43. Qxf6 {[%emt 0:00:31]} a5 {[%emt 0:00:54]} 44. Nf4 {[%emt 0:00:36]} 1-0

[Event "Reykjavik Open 2025"]
[Site "Reykjavik"]
[Date "2025.04.10"]
[Round "2.21"]
[White "Wan, Joseph"]
[Black "Garifullina, Leya"]
[Result "0-1"]
[Annotator "RC"]
[ECO "B51"]
[WhiteElo "2242"]
[BlackElo "2459"]
[PlyCount "104"]
[EventDate "2025.04.09"]
[EventType "swiss"]
[EventCountry "ISL"]
[SourceTitle "playchess.com"]
[Source "ChessBase"]
[SourceQuality "1"]
[TimeControl "40/5400+30:1800+30"]

1. e4 {[%emt 0:00:03]} c5 {[%emt 0:00:09]} 2. Nf3 {[%emt 0:00:24]} d6 {[%emt 0:00:08]} 3. Bb5+ {[%emt 0:00:14]} Nd7 {[%emt 0:00:06]} 4. O-O {[%emt 0:00:29]} a6 {[%emt 0:00:04]} 5. Bd3 {[%emt 0:00:05]} Ngf6 {[%emt 0:00:04]} 6. Re1 {[%emt 0:00:22]} e6 {[%emt 0:00:06]} 7. c3 {[%emt 0:00:18]} b5 {[%emt 0:00:37]} 8. Bc2 {[%emt 0:00:08]} Bb7 {[%emt 0:00:50]} 9. a4 {[%emt 0:01:44]} Be7 {[%emt 0:01:00]} 10. d4 {[%emt 0:03:34]} Qc7 {[%emt 0:02:55]} 11. Nbd2 {[%emt 0:03:39]} O-O {[%emt 0:01:25]} 12. e5 {[%emt 0:11:35]} dxe5 {[%emt 0:02:07]} 13. dxe5 {[%emt 0:00:10]} Nd5 {[%emt 0:00:32]} 14. Ne4 {[%emt 0:00:39]} Rfd8 {[%emt 0:09:14]} 15. Ng3 {[%emt 0:10:35]} N5b6 {[%emt 0:06:20]} 16. Qe2 {[%emt 0:05:29]} Bxf3 {[%emt 0:01:42]} 17. gxf3 {[%emt 0:00:13]} c4 {[%emt 0:04:24]} 18. Qe4 {[%emt 0:10:32]} g6 {[%emt 0:02:47]} 19. Be3 {[%emt 0:00:22]} Nc5 {[%emt 0:05:23]} 20. Bxc5 {[%emt 0:03:19]} Qxc5 {[%emt 0:02:07]} 21. axb5 {[%emt 0:04:25]} axb5 {[%emt 0:01:23]} 22. Rxa8 {[%emt 0:08:01]} Nxa8 {[%emt 0:07:23]} 23. h4 {[%emt 0:20:06]} Qd5 {[%emt 0:07:04]} 24. Rd1 {[%emt 0:04:47]} Qxe4 {[%emt 0:00:49]} 25. Rxd8+ {[%emt 0:00:06]} Bxd8 {[%emt 0:00:03]} 26. Nxe4 {[%emt 0:01:53]} Bxh4 {[%emt 0:02:20]} 27. Nd6 {[%emt 0:00:28]} Bg5 {[%emt 0:00:48]} 28. Nxb5 {[%emt 0:08:14]} Bc1 {[%emt 0:00:30]} 29. Nd6 {[%emt 0:02:15]} Bxb2 {[%emt 0:03:52]} 30. Nxc4 {[%emt 0:00:11]} Bxc3 {[%emt 0:00:05]} 31. f4 {[%emt 0:00:28]} Nc7 {[%emt 0:00:17]} 32. Kg2 {[%emt 0:00:13]} Nd5 {[%emt 0:00:40]} 33. Kf3 {[%emt 0:00:29]} Bd4 {[%emt 0:01:47]} 34. Kg3 {[%emt 0:01:12]} Bc5 {[%emt 0:00:46]} 35. Nb2 {[%emt 0:00:43]} Kg7 {[%emt 0:02:23]} 36. Ba4 {[%emt 0:00:21]} Nc3 {[%emt 0:00:27]} 37. Be8 {[%emt 0:00:36]} Kf8 {[%emt 0:00:07]} 38. Bc6 {[%emt 0:00:35]} Ne2+ {[%emt 0:00:11]} 39. Kg2 {[%emt 0:00:29]} Nxf4+ {[%emt 0:00:08]} 40. Kf3 {[%emt 0:00:01]} g5 {[%emt 0:00:56]} 41. Kg4 {[%emt 0:11:17]} h6 {[%emt 0:00:28]} 42. f3 {[%emt 0:00:06]} Bd4 {[%emt 0:00:28]} 43. Nc4 {[%emt 0:00:05]} Ng6 {[%emt 0:00:33]} 44. Be4 {[%emt 0:01:32]} Nxe5+ {[%emt 0:00:37]} 45. Nxe5 {[%emt 0:00:04]} Bxe5 {[%emt 0:00:02]} 46. Kh5 {[%emt 0:00:07]} Kg7 {[%emt 0:00:30]} 47. Bc6 {[%emt 0:00:13]} Bf4 {[%emt 0:01:09]} 48. Bb7 {[%emt 0:00:12]} f5 {[%emt 0:02:16]} 49. Bc8 {[%emt 0:00:16]} Kf6 {[%emt 0:00:04]} 50. Bb7 {[%emt 0:00:03]} e5 {[%emt 0:00:25]} 51. Bc6 {[%emt 0:01:46]} Ke6 {[%emt 0:00:06]} 52. Bb7 {[%emt 0:00:10]} Kd6 {[%emt 0:00:34]} 0-1

[Event "Reykjavik Open 2025"]
[Site "Reykjavik"]
[Date "2025.04.10"]
[Round "2.22"]
[White "Borne, Felix"]
[Black "Kjartansson, Gudmundur"]
[Result "1-0"]
[Annotator "RC"]
[ECO "A07"]
[WhiteElo "2225"]
[BlackElo "2450"]
[PlyCount "122"]
[EventDate "2025.04.09"]
[EventType "swiss"]
[EventCountry "ISL"]
[SourceTitle "playchess.com"]
[Source "ChessBase"]
[SourceQuality "1"]
[TimeControl "40/5400+30:1800+30"]

1. Nf3 {[%emt 0:00:03]} d5 {[%emt 0:01:24]} 2. g3 {[%emt 0:00:10]} g6 {[%emt 0:02:26]} 3. Bg2 {[%emt 0:00:11]} Bg7 {[%emt 0:00:04]} 4. O-O {[%emt 0:00:13]} e5 {[%emt 0:06:07]} 5. d3 {[%emt 0:00:43]} Ne7 {[%emt 0:01:37]} 6. c4 {[%emt 0:01:29]} c6 {[%emt 0:00:56]} 7. e4 {[%emt 0:00:27]} O-O {[%emt 0:05:01]} 8. b4 {[%emt 0:00:38]} dxe4 {[%emt 0:04:09]} 9. dxe4 {[%emt 0:00:08]} Qxd1 {[%emt 0:00:16]} 10. Rxd1 {[%emt 0:00:06]} Be6 {[%emt 0:00:15]} 11. Na3 {[%emt 0:13:47]} Na6 {[%emt 0:04:29]} 12. Ng5 {[%emt 0:04:38]} Bg4 {[%emt 0:08:04]} 13. f3 {[%emt 0:02:46]} Bc8 {[%emt 0:00:28]} 14. b5 {[%emt 0:10:30]} Nc5 {[%emt 0:02:00]} 15. Be3 {[%emt 0:01:55]} Na4 {[%emt 0:01:26]} 16. Rac1 {[%emt 0:13:25]} h6 {[%emt 0:04:24]} 17. Nh3 {[%emt 0:00:27]} Be6 {[%emt 0:00:23]} 18. Nf2 {[%emt 0:00:39]} Rfc8 {[%emt 0:12:09]} 19. Nd3 {[%emt 0:08:12]} f6 {[%emt 0:07:27]} 20. Nc5 {[%emt 0:06:15]} Nxc5 {[%emt 0:00:13]} 21. Bxc5 {[%emt 0:00:01]} Bf8 {[%emt 0:00:39]} 22. f4 {[%emt 0:01:29]} Bg4 {[%emt 0:03:23]} 23. Rf1 {[%emt 0:07:00]} cxb5 {[%emt 0:10:08]} 24. cxb5 {[%emt 0:00:21]} Rxc5 {[%emt 0:03:39]} 25. Rxc5 {[%emt 0:00:33]} Nf5 {[%emt 0:00:20]} 26. Rc7 {[%emt 0:10:52]} Ne3 {[%emt 0:00:50]} 27. Nc4 {[%emt 0:01:49]} Nxf1 {[%emt 0:00:13]} 28. Bxf1 {[%emt 0:05:47]} exf4 {[%emt 0:03:37]} 29. gxf4 {[%emt 0:00:09]} Rc8 {[%emt 0:01:39]} 30. Rxc8 {[%emt 0:04:00]} Bxc8 {[%emt 0:00:03]} 31. Kg2 {[%emt 0:02:55]} Bc5 {[%emt 0:01:27]} 32. Bd3 {[%emt 0:00:30]} Kf7 {[%emt 0:02:02]} 33. Kf3 {[%emt 0:00:47]} h5 {[%emt 0:00:42]} 34. Ne3 {[%emt 0:01:26]} Bd4 {[%emt 0:03:12]} 35. Bc4+ {[%emt 0:01:10]} Ke7 {[%emt 0:00:07]} 36. h4 {[%emt 0:00:56]} Bd7 {[%emt 0:03:40]} 37. a4 {[%emt 0:01:14]} b6 {[%emt 0:01:50]} 38. Bd5 {[%emt 0:00:15]} Be8 {[%emt 0:00:23]} 39. Nc4 {[%emt 0:01:26]} Bd7 {[%emt 0:02:54]} 40. Ne3 {[%emt 0:00:33]} Bh3 {[%emt 0:03:44]} 41. Bc4 {[%emt 0:03:45]} Bc8 {[%emt 0:01:54]} 42. Nd5+ {[%emt 0:07:26]} Kd6 {[%emt 0:01:00]} 43. Ne3 {[%emt 0:00:10]} Bb7 {[%emt 0:06:20]} 44. Bd5 {[%emt 0:04:36]} Bxd5 {[%emt 0:03:32]} 45. Nxd5 {[%emt 0:00:05]} f5 {[%emt 0:00:06]} 46. Ne3 {[%emt 0:01:54]} fxe4+ {[%emt 0:03:08]} 47. Kxe4 {[%emt 0:00:03]} Bf6 {[%emt 0:00:19]} 48. Nc4+ {[%emt 0:07:46]} Kc5 {[%emt 0:02:13]} 49. Ne5 {[%emt 0:00:23]} Bxh4 {[%emt 0:10:24]} 50. Nxg6 {[%emt 0:00:16]} Bf6 {[%emt 0:03:24]} 51. Ne5 {[%emt 0:00:18]} Bg7 {[%emt 0:01:20]} 52. f5 {[%emt 0:01:43]} h4 {[%emt 0:02:07]} 53. Nd7+ {[%emt 0:08:07]} Kb4 {[%emt 0:02:26]} 54. Nb8 {[%emt 0:00:23]} Kxa4 {[%emt 0:00:42]} 55. Nc6 {[%emt 0:00:01]} Kxb5 {[%emt 0:00:06]} 56. Nxa7+ {[%emt 0:00:03]} Kc5 {[%emt 0:00:05]} 57. Kf4 {[%emt 0:00:42]} Bf6 {[%emt 0:01:29]} 58. Kg4 {[%emt 0:00:10]} Kd5 {[%emt 0:00:30]} 59. Kh3 {[%emt 0:00:40]} Ke4 {[%emt 0:00:28]} 60. Kg4 {[%emt 0:00:09]} Kd5 {[%emt 0:00:31]} 61. Kh3 {[%emt 0:00:09]} Bg5 {[%emt 0:01:06]} 1-0